{"text_format":"1","workbook":"xlsx","n_sheets":1,"sheets":["01.07.2020"],"not_rendered":{"charts":0,"images":0,"macros":0,"external_links":0,"defined_names":1,"comments":0,"pivot_tables":0},"unopened":[],"bounds":{"document_bytes":16777216,"sheet_cells":100000,"rows_first":2000,"rows_last":500,"rows_between":2000,"halvings":0,"cell_chars":16384,"cell_head_chars":4096},"cells_cut":0,"cells_raw":0,"read":"whole","date_system":"1900"}

{"sheet":"01.07.2020","index":0,"n_rows":48,"n_cols":6,"rows_kept":48,"cut":false,"hidden":false,"merged":[[48,1,48,2],[49,1,49,2],[0,3,0,5],[1,3,1,5],[2,3,2,5],[4,0,4,5],[43,1,43,2]]}
[null,null,null,"Приложение №2"]
[null,null,null,"к постановлению администрации ЗАТО г.Радужный Владимирской области"]
[null,null,null,"от 20.07.2020г. № 855"]
[]
["Сведения о фактической численности муниципальных служащих, работников казенных и бюджетных учреждений и расходы на их денежное содержание по состоянию за 1 полугодие 2020 года"]
[]
["№п/п","Код раздела (подраздела)","Наименование раздела (подраздела) расходов","Фактическая численность на 01.07.2020 года (чел.)","Годовой фонд оплаты труда с начислениями (тыс.руб.)","Исполнено за отчетный период (тыс.руб.)"]
[1,2,3,4,5,6]
[1,"0100","Общегосударственные вопросы",{"$f":"D11+D12+D13+D14+D15","v":195.5},{"$f":"E11+E12+E13+E14+E15","v":67963.073000000004},{"$f":"F12+F13+F14+F15","v":32680.47}]
[null,null,"в том числе:"]
["1.1","0102","Функционирование высшего должностного лица субъекта Российской Федерации и муниципального образования"]
["1.2","0103","Функционирование законодательных (представительных) органов государственной власти и представительных органов муниципальных образований",2,1218.164,615.99]
["1.3","0104","Функционирование Правительства Российской Федерации, высших исполнительных органов государственной власти субъектов Российской Федерации, местных администраций",18,10774.16,5239.41]
["1.4","0106","Обеспечение деятельности финансовых, налоговых и таможенных органов и органов финансового (финансово-бюджетного) надзора",10,5187.0789999999997,2544.9299999999998]
["1.5","0113","Другие общегосударственные вопросы",165.5,50783.67,24280.14]
["2","0300","Национальная безопасность и правоохранительная деятельность, всего, в том числе",{"$f":"D18","v":5},{"$f":"E18","v":2323.6779999999999},{"$f":"F18","v":1090.01}]
[null,null,"в том числе:"]
["2.1","0309","Защита населения и территории от чрезвычайных ситуаций природного и техногенного характера, гражданская оборона",5,2323.6779999999999,1090.01]
["3.","0400","Национальная экономика",41,15986.68,6761.64]
[null,null,"в том числе:"]
["3.1","0409","Дорожное хозяйство (дорожные фонды)",41,15986.68,6761.64]
["4.","0500","Жилищно-коммунальное хозяйство",{"$f":"D24+D25","v":62},{"$f":"E24+E25","v":25689.271000000001},11656.779999999999]
[null,null,"в том числе:"]
["4.1","0503","Благоустройство",6,2696.181,839.14]
["4.2","0505","Другие вопросы в области жилищно-коммунального хозяйства",56,22993.09,10817.64]
["5","0700","Образование",{"$f":"D28+D29+D30+D31","v":563},{"$f":"E28+E29+E30+E31","v":221116.5},{"$f":"F28+F29+F30+F31","v":114951.61}]
[null,null,"в том числе:"]
["5.1","0701","Дошкольное образование",242,84830.54,42793.919999999998]
["5.2","0702","Общее образование ",196,89768.69,49127.61]
["5.3","0703","Дополнительное образование детей",99,{"$f":"14794.77+4467.42+17132.41","v":36394.600000000006},{"$f":"10148.66+8069.17","v":18217.830000000002}]
["5.4.","0709","Другие вопросы в области образования",26,10122.67,4812.25]
["6.","0800","Культура, кинематография",{"$f":"D34+D35","v":89},{"$f":"E34+E35","v":32197.33},{"$f":"F34+F35","v":16216.720000000001}]
[null,null,"в том числе:"]
["6.1","0801","Культура",50,21044.83,10602.19]
["6.2","0804","Другие вопросы в области культуры, кинематографии",39,11152.5,5614.53]
["7.","1000","Социальная политика",{"$f":"D38","v":2},{"$f":"E38","v":1002.55},{"$f":"F38","v":423.48}]
[null,null,"в том числе:"]
["7.1","1006","Другие вопросы в области социальной политики",2,1002.55,423.48]
["8.","1100","Физическая культура и спорт",{"$f":"D41","v":1},{"$f":"E41","v":910.58},{"$f":"F41","v":247.21}]
[null,null,"в том числе:"]
["8.1","1103","Спорт высших достижений",1,910.58,247.21]
[null,null,"Всего:",{"$f":"D9+D16+D19+D22+D26+D32+D36+D39","v":958.5},{"$f":"E9+E16+E19+E22+E26+E32+E36+E39","v":367189.66200000007},{"$f":"F9+F16+F19+F22+F26+F32+F36+F39","v":184027.92}]
[]
[null,"Заместитель главы администрации города по финансам и экономике, начальник финансового управления     ",null,null,"О.М.Горшкова"]
[]
[]
["В.Н. Милованова"]
["3-67-17"]